Cogmind - Beta 15 @@@ ROGUE MODE // 2025.08.11 @ 00:15:09 Player: naththebg Result: Destroyed by B-75 Beast with Heavy Machine Gun Performance ------------- Evolutions (2) 1000 Regions Visited (5) 1000 Robots Destroyed (106) 530 Value Destroyed (2676) 2676 Prototype IDs (5) 100 Alien Tech Used (0) 0 Bonus (270) 270 TOTAL SCORE: 5576 Bonus ------- High Alert Combat Kills 70 Entered Garrisons 200 Cogmind --------- Core Integrity 0/550 Matter 5/300 Energy 69/100 System Corruption 0% Temperature Hot (273) Movement Core (350) Ox6 Location -8/Garrison Parts ------- > --- POWER (1) -------- (None) > --- PROPULSION (3) --- (None) > --- UTILITY (5) ------ Large Storage Unit Hacking Suite Hacking Suite > --- WEAPON (2) ------- (None) > --- INVENTORY (15) --- Carbon-fiber Leg Carbon-fiber Leg Weight Redist. System Advanced Assault Cannon Remote Datajack Scythe Peak State ------------ > --- POWER ------------ Cooled Ion Engine > --- PROPULSION ------- Carbon-fiber Leg Carbon-fiber Leg Carbon-fiber Leg > --- UTILITY ---------- Large Storage Unit Improved Targeting Computer Medium Armor Plating Improved Shield Generator Hacking Suite > --- WEAPON ----------- Improved Assault Rifle Advanced EMP Blaster > --- INVENTORY -------- Cooled Ion Engine Light Treads Light Treads Light Treads Light Treads Improved Heat Sink Cooling System Weight Redist. System Hacking Suite Heavy Particle Cannon Improved Assault Rifle Improved Assault Rifle Flak Cannon Rocket Launcher Mini Grenade Launcher [Rating: 34] Favorites ----------- Power Cooled Ion Engine Engine Cooled Ion Engine Propulsion Light Treads Treads Light Treads Leg Carbon-fiber Leg Utility Hacking Suite Device Improved Shield Generator Storage Large Storage Unit Processor Improved Targeting Computer Hackware Hacking Suite Protection Hardened Medium Armor Plating Weapon Advanced Assault Cannon Energy Gun Small Laser Energy Cannon Heavy Particle Cannon Ballistic Gun Improved Assault Rifle Ballistic Cannon Advanced Assault Cannon Launcher Mini Grenade Launcher Slashing Weapon Scythe Build | -11 -10 -9 -9 -8 -8 ------- Run | Yrd Mat Mat Min Mat Gar Slots Evolved 4 | . . 2 . 2 . Power . | . . . . . . Propulsion 1 | . . 1 . . . Utility 3 | . . 1 . 2 . Weapon . | . . . . . . Parts Attached 53 | 6 3 15 . 24 5 Power 4 | 1 . 1 . 2 . Engine 4 | 1 . 1 . 2 . Core . | . . . . . . Reactor . | . . . . . . Propulsion 17 | 2 2 3 . 8 2 Treads 12 | . 2 3 . 5 2 Leg 5 | 2 . . . 3 . Wheel . | . . . . . . Hover . | . . . . . . Flight . | . . . . . . Utility 14 | 1 1 4 . 8 . Device 4 | . 1 . . 3 . Storage 3 | 1 . 2 . . . Processor 1 | . . 1 . . . Hackware 2 | . . 1 . 1 . Protection 4 | . . . . 4 . Artifact . | . . . . . . Weapon 18 | 2 . 7 . 6 3 Energy Gun 1 | 1 . . . . . Energy Cannon 1 | . . . . . 1 Ballistic Gun 7 | 1 . 5 . 1 . Ballistic Cannon 5 | . . . . 3 2 Launcher 3 | . . 2 . 1 . Special Weapon . | . . . . . . Impact Weapon . | . . . . . . Slashing Weapon 1 | . . . . 1 . Piercing Weapon . | . . . . . . Special Melee Weapon . | . . . . . . Unidentified Prototypes 4 | . . 2 . 2 . Parts Lost 22 | . . 3 . 2 17 Power 2 | . . . . 1 1 Propulsion 9 | . . 3 . . 6 Utility 5 | . . . . 1 4 Weapon 6 | . . . . . 6 Highest Loss Streak 17 | . . 2 . 2 17 To Critical Strikes . | . . . . . . Average Backups 11 | 4 7 8 10 14 14 Power . | . 1 1 1 . . Propulsion 3 | 3 5 4 2 3 4 Utility 2 | . . . 2 3 2 Weapon 5 | . 1 2 5 6 5 Tool/Special . | . . . . . . Unused Backups 7 | . . 4 . 3 . Power 1 | . . 1 . . . Propulsion 2 | . . 2 . . . Utility 1 | . . . . 1 . Weapon 3 | . . 1 . 2 . Tool/Special . | . . . . . . Average Slot Usage (%) 94 | . 85 89 88 97 95 Engine 9 | . 14 10 11 8 8 Treads 24 | . 25 27 22 23 24 Leg 1 | . 3 . . 2 . Device 5 | . . 9 . 6 . Storage 9 | . 14 11 11 9 9 Processor 4 | . . 7 11 3 . Hackware 10 | . . 1 11 14 18 Protection 7 | . . . . 10 16 Energy Gun 1 | . 14 2 . . . Ballistic Gun 8 | . 14 13 22 5 . Ballistic Cannon 6 | . . . . 8 16 Launcher 2 | . . 6 . 1 . Slashing Weapon 1 | . . . . 1 . Peak Build Rating 34 | 6 8 19 19 34 31 Average Rating 22 | 4 6 14 19 28 29 On Entrance 13 | . 6 8 18 19 31 Naked Turns . | . . . . . . Heaviest Build 58 | 12 12 33 34 58 58 Greatest Support 66 | 20 46 66 40 60 60 Greatest Overweight (x) 2 | . . 1 . 2 1 Average Overweight (x) . | . . . . . . Largest Inventory Capacity 15 | 8 8 15 15 15 15 Average Capacity 13 | 6 8 9 15 15 15 Most Carried 15 | 6 8 12 11 15 15 Average Carried 11 | 4 7 8 10 14 13 Final Capacity 15 | 8 8 15 15 15 15 Final Carried 15 | 6 8 10 11 15 6 Class Distribution -------------------- 60% | Mutant 25% | Hacker-Mutant 13% | Scavenger-Mutant Dominant Class ---------------- Mutant | -10/Materials Mutant | -9/Materials Mutant | -9/Mines Hacker-Mutant | -8/Materials Scavenger-Mutant | -8/Garrison Resources | -11 -10 -9 -9 -8 -8 ----------- Run | Yrd Mat Mat Min Mat Gar Matter Collected 2426 | 201 74 425 130 1505 91 Remotely . | . . . . . . Salvage Created 3059 | . 86 910 14 1947 102 Parts 195 | . 18 44 5 123 5 Haulers Intercepted 8 | . . 3 . 5 . Recyclers Shooed 3 | . . 1 . 2 . Parts Field Recycled . | . . . . . . Retrieved Matter . | . . . . . . Parts Self-Destructed . | . . . . . . Prevented . | . . . . . . Kills | -11 -10 -9 -9 -8 -8 ------- Run | Yrd Mat Mat Min Mat Gar Combat Hostiles Destroyed 64 | . 6 18 . 33 7 Guns 20 | . 6 8 . 6 . Cannons 21 | . . . . 17 4 AOE 23 | . . 10 . 10 3 Classes Destroyed 17 | . 1 9 1 4 2 Worker 8 | . . 2 . 6 . Builder 8 | . . 1 . 7 . Tunneler 4 | . . . 1 3 . Hauler 8 | . . 3 . 5 . Recycler 8 | . . 2 . 6 . Operator 3 | . . 2 . 1 . Watcher 3 | . . 1 . 2 . Swarmer 18 | . 6 3 . 6 3 Grunt 25 | . . 10 . 13 2 Brawler 1 | . . 1 . . . Duelist 1 | . . . . . 1 Sentry 13 | . . 4 . 9 . Demolisher 1 | . . . . . 1 Specialist 2 | . . . . 2 . Hunter 1 | . . . . 1 . Programmer 1 | . . . . 1 . Heavy 1 | . . . . 1 . Best Kill Streak 10 | . 3 5 1 10 3 Combat Bots Only 5 | . 3 3 . 5 3 Max Kills in Single Turn 5 | . 1 3 1 5 2 Gunslinging . | . . . . . . Exploded 2 | . . 2 . 2 2 Melee . | . . . . . . Uniques/NPCs Destroyed . | . . . . . . Combat | -11 -10 -9 -9 -8 -8 -------- Run | Yrd Mat Mat Min Mat Gar Hostile Shots Fired 360 | . 11 55 . 163 131 Missed 96 | . . 17 . 45 34 Hits 264 | . 11 38 . 118 97 Melee 1 | . . . . . 1 Projectile 263 | . 11 38 . 118 96 AOE 4 | . . . . . 4 Critical Strikes 9 | . . 1 . 5 3 Damage Taken 4649 | . 84 802 . 1393 2370 Core 818 | . 28 234 . 99 457 Absorbed by Shields 256 | . . . . 256 . Ignored by Resistances 279 | . . . . 151 128 Regen/Repaired (Parts) 134 | . . . . 134 . Core Remaining (%) 76 | 100 88 . 41 . . Volleys Fired 209 | . 9 51 2 114 33 Largest 2 | . 2 2 2 2 2 Hottest 115 | . 60 70 46 80 115 Shots Fired 372 | . 18 86 4 210 54 Gun 196 | . 18 66 4 108 . Cannon 125 | . . . . 81 44 Launcher 51 | . . 20 . 21 10 Special . | . . . . . . Kinetic 290 | . 9 52 4 189 36 Thermal 31 | . 9 14 . . 8 Explosive 51 | . . 20 . 21 10 Electromagnetic . | . . . . . . Robot Hit Streak 39 | . 4 22 3 39 10 Robot Miss Streak 3 | . 2 3 . 2 2 Penetration Max . | . . . . . . Secondary Targets . | . . . . . . Shots Hit Robots 274 | . 7 61 1 162 43 Core Hits 156 | . 6 46 1 83 20 Critical Kills . | . . . . . . Critical Parts Destroyed 1 | . . . . 1 . Critical Strikes 4 | . . . . 2 2 Destroy 1 | . . . . 1 . Blast 3 | . . . . 1 2 Melee Attacks 15 | . . . . 15 . Impact . | . . . . . . Slashing 15 | . . . . 15 . Piercing . | . . . . . . Sneak Attacks 11 | . . . . 11 . Combat Hostiles . | . . . . . . Follow-up Attacks . | . . . . . . Damage Inflicted 8956 | . 72 1937 14 5243 1690 Guns 2088 | . 72 700 14 1302 . Cannons 2420 | . . . . 1401 1019 Explosions 3681 | . . 1237 . 1773 671 Melee 717 | . . . . 717 . Ramming 50 | . . . . 50 . Kinetic 4115 | . 6 562 14 2703 830 Thermal 777 | . 66 138 . 384 189 Explosive 3297 | . . 1237 . 1389 671 Electromagnetic . | . . . . . . Impact . | . . . . . . Slashing 717 | . . . . 717 . Piercing . | . . . . . . Highest Corruption 9 | . . 9 9 . . Average Corruption 9 | . . 9 9 . . Corruption Purged . | . . . . . . Corruption Blocked . | . . . . . . Effects 18 | . . 7 11 . . Message Errors 3 | . . . 3 . . Matter Fused 6 | . . 2 4 . . Heat Flow Errors 1 | . . 1 . . . Parts Rejected 2 | . . 2 . . . Data Loss (minor) 4 | . . 1 3 . . Misfires 1 | . . 1 . . . Alerts 1 | . . . 1 . . Overload Shots . | . . . . . . Overflow Damage 435 | . . 45 . 353 37 Projectiles 31 | . . . . 15 16 Explosions 237 | . . 45 . 171 21 Melee 167 | . . . . 167 . Knockbacks 13 | . . . . 11 2 Impact . | . . . . . . Kinetic 13 | . . . . 11 2 Secondary . | . . . . . . Self-Inflicted Damage 150 | . . 127 . 23 . Shots 9 | . . 8 . 1 . Rammed 5 | . . . . 5 . Targets Rammed 9 | . . . . 9 . Kicked . | . . . . . . Crushed 4 | . . . . 4 . Highest Temperature 521 | . 40 138 . 210 521 Average Temperature 102 | . 15 38 . 50 198 Received Heat Transfer 1638 | . . 147 . 496 995 Effects 6 | . . . . . 6 Shutdowns 1 | . . . . . 1 Matter Decay 1 | . . . . . 1 Damage (minor) 1 | . . . . . 1 Damage (major) 3 | . . . . . 3 Siege Activations . | . . . . . . Martial Activations . | . . . . . . Shielding Activations . | . . . . . . Robots Disrupted . | . . . . . . Combat Hostiles . | . . . . . . Robots Corrupted . | . . . . . . Combat Hostiles . | . . . . . . Parts Fried . | . . . . . . Impact Corruptions . | . . . . . . Robots Melted . | . . . . . . Combat Hostiles . | . . . . . . Parts Melted . | . . . . . . Heat Transferred 1009 | . 150 300 . 300 259 Parts Sabotaged . | . . . . . . Parts Stolen . | . . . . . . Parts Stripped . | . . . . . . Power Chain Reactions . | . . . . . . Alert | -11 -10 -9 -9 -8 -8 ------- Run | Yrd Mat Mat Min Mat Gar Maximum Alert Level 2 | . . 1 . 2 1 Low Security (%) 51 | 100 100 76 100 28 38 Level 1 35 | . . 23 . 47 61 Level 2 12 | . . . . 24 . Level 3 . | . . . . . . Level 4 . | . . . . . . Level 5 . | . . . . . . High Security . | . . . . . . Max Security . | . . . . . . Peak Influence 529 | . 110 336 89 529 333 Initial 165 | . . 16 89 . 165 Average 210 | . 50 157 30 282 242 Influence Increases 2555 | . 140 754 5 1455 201 Destroy 0b10 Robot/C 1280 | . 120 360 . 660 140 Destroy 0b10 Robot/NC 210 | . . 55 5 150 . Destroy Leader 332 | . 20 88 . 204 20 Successful Hack 17 | . . 5 . 12 . Disable Machine 255 | . . 105 . 150 . Destroy Structure 311 | . . 126 . 144 41 Lose Combat Pursuer 150 | . . 15 . 135 . Influence Decreases 2359 | . 100 564 235 1200 260 Entered New Map 255 | . . 24 141 . 90 Time Decay 1134 | . 100 360 94 580 . Lost Part 220 | . . 30 . 20 170 Purge Threat 750 | . . 150 . 600 . Squads Dispatched 7 | . . 3 . 4 . Investigation 3 | . . 1 . 2 . Extermination . | . . . . . . Reinforcement 4 | . . 2 . 2 . Assault . | . . . . . . Garrison . | . . . . . . Intercept . | . . . . . . Searches Triggered . | . . . . . . Construction Impeded . | . . . . . . Haulers Reinforced . | . . . . . . Active Scanning Responses . | . . . . . . Cargo Convoy Interrupts . | . . . . . . Stealth | -11 -10 -9 -9 -8 -8 --------- Run | Yrd Mat Mat Min Mat Gar Distress Signals 4 | . . 2 . 2 . Communications Jammed . | . . . . . . Distress Signals . | . . . . . . Times Spotted 99 | . 7 33 . 49 10 Peak Tracking Total 6 | . 3 6 . 6 4 Tactical Retreats 8 | . . 1 . 7 . Traps | -11 -10 -9 -9 -8 -8 ------- Run | Yrd Mat Mat Min Mat Gar Traps Triggered 4 | . . 2 . 1 1 Indirectly . | . . . . . . Trap Hack Attempts . | . . . . . . Triggered . | . . . . . . Disarmed . | . . . . . . Reprogrammed . | . . . . . . Reused . | . . . . . . Traps Extracted . | . . . . . . Installed . | . . . . . . Triggered . | . . . . . . Machines | -11 -10 -9 -9 -8 -8 ---------- Run | Yrd Mat Mat Min Mat Gar Machines Disabled 17 | . . 7 . 10 . Max in Single Turn 5 | . . 1 . 5 . Machines Repaired . | . . . . . . Machines Dismantled . | . . . . . . Machines Sabotaged . | . . . . . . Overloaded Fab Kills . | . . . . . . Hacking | -11 -10 -9 -9 -8 -8 --------- Run | Yrd Mat Mat Min Mat Gar Machines Accessed 16 | . 1 3 . 12 . Terminals 12 | . 1 3 . 8 . Fabricators . | . . . . . . Repair Stations 1 | . . . . 1 . Recycling Units 2 | . . . . 2 . Scanalyzers . | . . . . . . Garrison Access 1 | . . . . 1 . Total Hacks 36 | . 1 8 . 27 . Successful 20 | . 1 3 . 16 . Failed 16 | . . 5 . 11 . Catastrophic . | . . . . . . Database Lockouts . | . . . . . . Manual 22 | . 1 8 . 13 . Terminals 28 | . 1 8 . 19 . Fabricators . | . . . . . . Repair Stations 3 | . . . . 3 . Recycling Units 3 | . . . . 3 . Scanalyzers . | . . . . . . Garrison Access 2 | . . . . 2 . Terminal Hacks 9 | . . 2 . 7 . Prototype ID Bank 1 | . . . . 1 . Branch Access Points 1 | . . 1 . . . Garrison Index 1 | . . . . 1 . Alert Level 1 | . . . . 1 . Unreport Threat 5 | . . 1 . 4 . Fabricator Hacks . | . . . . . . Repair Station Hacks 2 | . . . . 2 . Scan Component 1 | . . . . 1 . Repair 1 | . . . . 1 . Recycling Unit Hacks 3 | . . . . 3 . Retrieve Matter 1 | . . . . 1 . Retrieve Components 2 | . . . . 2 . Scanalyzer . | . . . . . . Garrison Access Hacks 1 | . . . . 1 . Unlock Access 1 | . . . . 1 . Unauthorized Hacks 5 | . 1 1 . 3 . Terminals 4 | . 1 1 . 2 . Botnet 4 | . 1 1 . 2 . Fabricators . | . . . . . . Repair Stations . | . . . . . . Recycling Units . | . . . . . . Scanalyzers . | . . . . . . Garrison Access 1 | . . . . 1 . Restock 1 | . . . . 1 . Data Cores Recovered . | . . . . . . Used . | . . . . . . Hacking Detections 14 | . . 3 . 11 . Full Trace Events 3 | . . 1 . 2 . Feedback Events . | . . . . . . Feedback Blocked . | . . . . . . Robot Schematics Acquired . | . . . . . . Robots Built . | . . . . . . Authchips . | . . . . . . Time . | . . . . . . Total Robot Build Rating . | . . . . . . Part Schematics Acquired . | . . . . . . Parts Built . | . . . . . . Authchips . | . . . . . . Time . | . . . . . . Total Part Build Rating . | . . . . . . Parts Repaired 1 | . . . . 1 . Time 13 | . . . . 13 . Parts Recycled . | . . . . . . Recycled Matter . | . . . . . . Retrieved Matter 83 | . . . . 83 . Retrieved Components 11 | . . . . 11 . Parts Scanalyzed . | . . . . . . Part Schematics Acquired . | . . . . . . Parts Damaged . | . . . . . . Bothacking | -11 -10 -9 -9 -8 -8 ------------ Run | Yrd Mat Mat Min Mat Gar Used RIF Installer . | . . . . . . Robots Hacked . | . . . . . . Non-combat . | . . . . . . Combat . | . . . . . . Robot Hacks Applied . | . . . . . . Relay Couplers Released 4 | . . . . 4 . Programmers 4 | . . . . 4 . Fabnet Peak Effective % . | . . . . . . Robots Rewired . | . . . . . . Allies Hacked . | . . . . . . Hacks Repelled . | . . . . . . Allies | -11 -10 -9 -9 -8 -8 -------- Run | Yrd Mat Mat Min Mat Gar Total Allies . | . . . . . . Largest Group . | . . . . . . Highest-Rated Group . | . . . . . . Highest-Rated Ally . | . . . . . . Total Orders . | . . . . . . Ally Attacks . | . . . . . . Total Damage . | . . . . . . Kills . | . . . . . . Allies Corrupted . | . . . . . . Allies Melted . | . . . . . . Intel | -11 -10 -9 -9 -8 -8 ------- Run | Yrd Mat Mat Min Mat Gar Active Infowar (turns) 149 | . . . . 149 . Terrain 149 | . . . . 149 . Robot Analysis Total . | . . . . . . Derelict Logs Recovered . | . . . . . . Drone Launches . | . . . . . . Drone Recoveries . | . . . . . . Exploration | -11 -10 -9 -9 -8 -8 ------------- Run | Yrd Mat Mat Min Mat Gar Turns Passed 3958 | 78 278 873 293 2060 376 Spaces Moved 1856 | 60 156 387 172 933 148 Core 13 | 13 . . . . . Treads 1670 | . 137 387 172 826 148 Legs 173 | 47 19 . . 107 . Wheels . | . . . . . . Hover . | . . . . . . Flight . | . . . . . . Fastest Speed 50 | 50 120 160 160 120 160 Average Speed 155 | 104 155 160 160 155 163 Slowest Speed 320 | 120 160 240 160 320 240 Overloaded Moves . | . . . . . . Propulsion Burnouts . | . . . . . . Robots Hopped . | . . . . . . Potential Cave-ins . | . . . . . . Cave-ins Triggered 1 | . . 1 . . . Exploration Rate (%) 36 | 4 32 36 46 73 27 Regions Visited 5 Branch Regions 1 Pre-discovered Areas . | . . . . . . Known Exits Taken 2 | . . 1 . 1 . Unknown Exits Taken 3 | 1 1 . 1 . . Scrap Searched 1 | . . . 1 . . Spaces Dug 2 | . . 2 . . . Terrain Destroyed 348 | . . 123 . 164 61 Melee . | . . . . . . Projectile 25 | . . . . 23 2 AOE 323 | . . 123 . 141 59 Terrain Rammed . | . . . . . . Walls Destroyed . | . . . . . . Machines Disabled . | . . . . . . Actions | -11 -10 -9 -9 -8 -8 --------- Run | Yrd Mat Mat Min Mat Gar Total 2499 | 72 175 550 185 1291 226 Wait 254 | . 2 69 10 144 29 Move 1851 | 59 155 386 171 932 148 Hop . | . . . . . . Pick Up 37 | 7 4 10 1 15 . Fast Attach 23 | 5 1 7 . 10 . Attach 15 | 1 . 3 . 2 9 Detach . | . . . . . . Swap 57 | . 2 16 1 33 5 Drop 27 | . 2 8 . 17 . Fire 209 | . 9 51 2 114 33 Melee 15 | . . . . 15 . Ram . | . . . . . . Kick . | . . . . . . Crush 9 | . . . . 9 . Escape Stasis 2 | . . . . . 2 Rewire . | . . . . . . Trap . | . . . . . . Miscellaneous . | . . . . . . Route ------- -11/Scrapyard -10/Materials -9/Materials (discovered 2 exits: *Min x2) -9/Mines -8/Materials (discovered 3 exits: [*Fac x2] / Gar) -8/Garrison (discovered 1 exit: [*Mat]) History --------- Turn | Location | Event 9 | -11/Scrapyard | Discovered new exit (range 15) 79 | -11/Scrapyard | Entered Materials 253 | -10/Materials | Discovered new exit (range 16) 300 | -10/Materials | Build established: Mutant 357 | -10/Materials | Entered another Materials area 357 | -9/Materials | Evolved 2 slots: Propulsion x1, Utility x1 678 | -9/Materials | Identified exit to Mines 1071 | -9/Materials | Crushed by falling debris 1071 | -9/Materials | Core integrity fell below 50% 1230 | -9/Materials | Entered Mines 1507 | -9/Mines | Discovered new exit (range 9) 1523 | -9/Mines | Entered Materials 1523 | -8/Materials | Evolved 2 slots: Utility x2 2407 | -8/Materials | Discovered new exit (range 15) 2635 | -8/Materials | Build established: Hacker-Mutant 3305 | -8/Materials | Discovered new exit (range 5) 3329 | -8/Materials | Repaired Lgt. Treads 3468 | -8/Materials | Identified exit to Garrison 3583 | -8/Materials | Entered Garrison 3640 | -8/Garrison | Build established: Scavenger-Mutant 3643 | -8/Garrison | Triggered checkpoint 3805 | -8/Garrison | Discovered new exit (range 15) 3862 | -8/Garrison | Spotted B-75 Beast 3862 | -8/Garrison | Spotted B-75 Beast 3888 | -8/Garrison | Triggered checkpoint 3925 | -8/Garrison | Core integrity fell below 50% 3954 | -8/Garrison | Core integrity fell below 20% 3959 | -8/Garrison | Destroyed by B-75 Beast with Heavy Machine Gun Last Messages --------------- 03911_ Reactive Plating destroyed. 03913_ Overheating: Lrg. Storage Unit damaged (-150). 03913_ Overheating: Hacking Suite damaged (-2). 03913_ Overheating: Lgt. Treads damaged (-25). 03914_ The unstable cave ceiling collapses. 03916_ Power failure, Cld. Ion Engine shutdown. 03921_ Imp. Heat Sink destroyed. 03921_ Lgt. Treads destroyed. 03925_ Acquired 3 matter. 03933_ Cld. Ion Engine destroyed. 03940_ Lgt. Treads destroyed. 03940_ Knocked back. 03943_ Adv. Assault Cannon destroyed. 03946_ Hrd. Medium Armor Plating destroyed. 03949_ Hvy. Particle Cannon destroyed. 03953_ Assault Cannon destroyed. 03953_ Knocked back. 03959_ Mni. Grenade Launcher destroyed. 03959_ Knocked back. Map ----- +----------------------------------------------------+ | ??????????????????????# #??????????????????????? | | ??????????????????????# #??????????????????????? | | ??????????????????????# #??????????????????????? | | ??????????????????????# #??????????????????????? | | ??????????????????????# #???????????#??????????? | | ??????????????????????# #?????????? ?????????? | | ??????????????????????# #?????????? ?????????? | | ??????????????????????# #?????????? ??????????? | | ??????????????????????# #?????????? ??????????? | | ???????????# #####"""## #????????? ??????????? | | ?????????? % #???????? ???????????? | | ?????????? % % ###?????? ??#????????? | | ???????????############ # ###?### #!!#????????? | | ??????????????????????# # ## # ??????????? | | ??????????????????????# # #???????????? | | ?????????????????????## # ## # #???###### | | ???????????########### BB # # #???# | | ????????? % % = BB % ##???# | | ????????? % BB # #????# ### | | ???????????# ##### %# BB # % #????# #?? | | ?????????????????????# #??# #????# #?? | | ??????????????????#??# ##??# ###????# #?? | | ??????????????????# ## #?#???# #??????# #?? | | ??????????????????# #?????# ######## #?? | | ??????????????????#### %% %#?????# ## ## #?? | | ????????????????????# =@ ####### ## ## ##? | | ????????????????????# = = = #? | | ??????????????????#### % #? | | ???????????# % #? | | ?????????????########### ## ###### ## ## #? | | ???????????????????????######????# ## ## #? | | ?????????????????????????????????" "? | | ?????????????????????????????????" "? | | ?????????????????????????????????" "? | | ?????????????????????????????????" "? | | ?????????????????????????????????# ## ## #? | | ?????????????????????????????????# ## #? #? | | ????????????????????????????????? ? ? | | ????????????????????????????????? ? ? | | ????????????????????????????????? ? | | ?????????????????????????????????######""""#?####? | | ?????????????????????????????????????????????????? | | ?????????????????????????????????????????????????? | | ?????????????????????????????????????????????????? | | ?????????????????????????????????????????????????? | | ?????????????????????????????????????????????????? | | ?????????????????????????????????????????????????? | | ?????????????????????????????????????????????????? | | ?????????????????????????????????????????????????? | | ?????????????????????????????????????????????????? | +----------------------------------------------------+ Best States ------------- Heat Dissipation 45 Energy Generation 14 Energy Capacity 280 Matter Stores 300 Matter Capacity 300 Sight Range 16 Terrain Scan Range 16 Terrain Scan Density 10 Additional Mass Support 6 Armor Coverage 375 Resistance: KI 20 Evasion (%) 55 Targeting Accuracy 6 Recoil Reduction 3 Offensive Hacking 20 Item Schematics ----------------- None Robot Schematics ------------------ None Fabricated ------------ Nothing Repaired ---------- Lgt. Treads | 4% | -8/Materials Alien Tech Used ----------------- None Achievements -------------- None Challenges ------------ None Game ------ Seed ShadeGuidedLattice Manual? 0 Play Time 00:33:11 Cumulative 339.3 hours Start 2025.08.10 @ 23:07:53 End 2025.08.11 @ 00:15:09 Sessions 3 Manual Loads 0 Difficulty Rogue Special Mode None Game No. 168 Rogue 168 Adventurer 0 Explorer 0 Win Type - Total 7 Types 4/0/2/0/0/0/0/0/0/1 Lore% 82 Gallery% 82 Achievement% 68 Wizard Run 0 Options --------- Layout 1 ASCII 0 Keyboard 0 Movement Mouse Keybinds 0 Fullscreen 1 Font 24/Smallcaps Map View 50x35 Zoom Use 0% Tactical HUD 1 Map Filters NONE Filters NONE Steam 1 RUN: ab1ce420-fcd0-4675-b1a3-487f52f631da